[Event "Turkish Women-ch Arzum 2022"]
[Site "Ayvalik"]
[Date "2022.03.05"]
[Round "1.1"]
[White "Turunz, Dilek"]
[Black "Atalik, Ekaterina"]
[Result "0-1"]
[ECO "A21"]
[WhiteElo "1443"]
[BlackElo "2415"]
[Annotator "NA"]
[PlyCount "122"]
[EventDate "2022.03.04"]
[EventType "swiss"]
[EventCountry "TUR"]
[SourceTitle "playchess.com"]
[Source "ChessBase"]
[SourceQuality "1"]
[TimeControl "5400+30"]

1. c4 {[%emt 0:01:00]} e5 {[%emt 0:01:00]} 2. Nc3 {[%emt 0:00:00]} Nf6 {[%emt 0:00:30]} 3. e3 {[%emt 0:00:00]} Bb4 {[%emt 0:01:30]} 4. Qc2 {[%emt 0:00:30]} O-O {[%emt 0:00:30]} 5. Nge2 {[%emt 0:03:30]} c6 {[%emt 0:00:30]} 6. d4 {[%emt 0:05:30]} e4 {[%emt 0:07:30]} 7. a3 {[%emt 0:02:30]} Bxc3+ {[%emt 0:00:30]} 8. Nxc3 {[%emt 0:00:30]} d5 {[%emt 0:00:30]} 9. Be2 {[%emt 0:02:30]} Re8 {[%emt 0:02:30]} 10. Bd2 {[%emt 0:03:30]} dxc4 {[%emt 0:01:30]} 11. Bxc4 {[%emt 0:00:30]} Be6 {[%emt 0:01:30]} 12. Be2 {[%emt 0:06:30]} Bf5 {[%emt 0:06:30]} 13. h3 {[%emt 0:03:30]} Nbd7 {[%emt 0:03:30]} 14. b4 {[%emt 0:02:30]} Nb6 {[%emt 0:01:30]} 15. Rc1 {[%emt 0:01:30]} Nfd5 {[%emt 0:04:30]} 16. O-O {[%emt 0:03:30]} Qg5 {[%emt 0:02:30]} 17. Kh2 {[%emt 0:01:30]} Re6 {[%emt 0:03:30]} 18. g4 {[%emt 0:15:30]} Qh4 {[%emt 0:09:30]} 19. Rg1 {[%emt 0:02:30]} Bg6 {[%emt 0:03:30]} 20. Rg3 {[%emt 0:01:30]} Rf8 {[%emt 0:03:30]} 21. Rcg1 {[%emt 0:03:30]} f5 {[%emt 0:05:30]} 22. gxf5 {[%emt 0:01:30]} Bxf5 {[%emt 0:04:30]} 23. Be1 {[%emt 0:02:30]} g6 {[%emt 0:06:30]} 24. Bg4 {[%emt 0:03:30]} Nxc3 {[%emt 0:06:30]} 25. Qxc3 {[%emt 0:04:30]} Bxg4 {[%emt 0:00:30]} 26. Rxg4 {[%emt 0:01:30]} Qd8 {[%emt 0:00:30]} 27. Qc2 {[%emt 0:04:30]} Qd5 {[%emt 0:01:30]} 28. Rg5 {[%emt 0:02:30]} Qd6+ {[%emt 0:00:30]} 29. Kh1 {[%emt 0:03:07]} Nd5 {[%emt 0:01:30]} 30. Qc5 {[%emt 0:01:48]} Qd7 {[%emt 0:01:30]} 31. Kh2 {[%emt 0:08:14]} a6 {[%emt 0:00:52]} 32. R1g4 {[%emt 0:04:52]} Rf3 {[%emt 0:02:52]} 33. Re5 {[%emt 0:01:20]} Rxe5 {[%emt 0:04:16]} 34. dxe5 {[%emt 0:00:02]} Rxh3+ {[%emt 0:01:50]} 35. Kxh3 {[%emt 0:00:30]} h5 {[%emt 0:00:00]} 36. Qd6 {[%emt 0:00:53]} Qxg4+ {[%emt 0:02:11]} 37. Kh2 {[%emt 0:00:01]} Kf7 {[%emt 0:01:34]} 38. Qb8 {[%emt 0:01:51]} Qd7 {[%emt 0:02:50]} 39. Qh8 {[%emt 0:00:19]} Ke6 {[%emt 0:00:46]} 40. Qg8+ {[%emt 0:01:17]} Qf7 {[%emt 0:01:47]} 41. Qh8 {[%emt 0:02:33]} Kf5 {[%emt 0:01:12]} 42. Kg3 {[%emt 0:00:42]} Kg5 {[%emt 0:02:12]} 43. Qd8+ {[%emt 0:00:47]} Qe7 {[%emt 0:01:00]} 44. Qd6 {[%emt 0:00:17]} Kf5 {[%emt 0:01:35]} 45. f4 {[%emt 0:01:16]} Qxd6 {[%emt 0:00:32]} 46. exd6 {[%emt 0:00:00]} Ke6 {[%emt 0:00:05]} 47. Bf2 {[%emt 0:00:22]} Kxd6 {[%emt 0:00:54]} 48. Kh4 {[%emt 0:00:07]} Ke6 {[%emt 0:00:30]} 49. Kg5 {[%emt 0:00:02]} Ne7 {[%emt 0:00:37]} 50. Be1 {[%emt 0:00:44]} Nf5 {[%emt 0:00:50]} 51. Bf2 {[%emt 0:00:36]} b6 {[%emt 0:00:58]} 52. Be1 {[%emt 0:00:24]} c5 {[%emt 0:00:00]} 53. bxc5 {[%emt 0:00:56]} bxc5 {[%emt 0:00:25]} 54. a4 {[%emt 0:00:30]} c4 {[%emt 0:00:00]} 55. a5 {[%emt 0:00:05]} h4 {[%emt 0:00:48]} 56. Bxh4 {[%emt 0:00:30]} Nxh4 {[%emt 0:00:30]} 57. Kxh4 {[%emt 0:00:00]} c3 {[%emt 0:00:00]} 58. Kg5 {[%emt 0:00:16]} c2 {[%emt 0:00:22]} 59. Kxg6 {[%emt 0:00:00]} c1=Q {[%emt 0:00:00]} 60. f5+ {[%emt 0:00:10]} Ke5 {[%emt 0:00:28]} 61. f6 {[%emt 0:00:00]} Qc6 {[%emt 0:00:00]} 0-1

[Event "Turkish Women-ch Arzum 2022"]
[Site "Ayvalik"]
[Date "2022.03.05"]
[Round "1.2"]
[White "Aydin, Gulenay"]
[Black "Buyuk, Elvin Esma"]
[Result "1/2-1/2"]
[ECO "B01"]
[WhiteElo "2069"]
[BlackElo "1326"]
[Annotator "NA"]
[PlyCount "151"]
[EventDate "2022.03.04"]
[EventType "swiss"]
[EventCountry "TUR"]
[SourceTitle "playchess.com"]
[Source "ChessBase"]
[SourceQuality "1"]
[TimeControl "5400+30"]

1. e4 {[%emt 0:01:00]} d5 {[%emt 0:01:00]} 2. exd5 {[%emt 0:00:30]} Qxd5 {[%emt 0:00:00]} 3. Nc3 {[%emt 0:00:30]} Qa5 {[%emt 0:00:00]} 4. Bc4 {[%emt 0:00:30]} Nf6 {[%emt 0:00:30]} 5. d4 {[%emt 0:05:30]} Bf5 {[%emt 0:00:30]} 6. Nf3 {[%emt 0:14:30]} e6 {[%emt 0:00:30]} 7. Bd2 {[%emt 0:06:30]} c6 {[%emt 0:02:30]} 8. O-O {[%emt 0:02:30]} Nbd7 {[%emt 0:02:30]} 9. Re1 {[%emt 0:01:30]} Bb4 {[%emt 0:03:30]} 10. a3 {[%emt 0:02:30]} Bxc3 {[%emt 0:00:30]} 11. Bxc3 {[%emt 0:00:00]} Qc7 {[%emt 0:00:30]} 12. Bd3 {[%emt 0:05:00]} Bxd3 {[%emt 0:02:30]} 13. Qxd3 {[%emt 0:00:30]} O-O {[%emt 0:00:30]} 14. Rad1 {[%emt 0:02:30]} Nd5 {[%emt 0:02:30]} 15. Bd2 {[%emt 0:02:30]} b5 {[%emt 0:03:30]} 16. b3 {[%emt 0:08:30]} N5b6 {[%emt 0:03:30]} 17. Ne5 {[%emt 0:16:30]} Nxe5 {[%emt 0:07:30]} 18. Rxe5 {[%emt 0:00:00]} Rfd8 {[%emt 0:02:30]} 19. Bf4 {[%emt 0:01:00]} Qe7 {[%emt 0:03:30]} 20. Bc1 {[%emt 0:08:45]} Rd5 {[%emt 0:02:30]} 21. Bb2 {[%emt 0:05:22]} Rad8 {[%emt 0:02:30]} 22. Rde1 {[%emt 0:01:41]} Rxe5 {[%emt 0:03:30]} 23. Rxe5 {[%emt 0:00:06]} Qd6 {[%emt 0:02:30]} 24. h3 {[%emt 0:01:58]} Qxe5 {[%emt 0:03:30]} 25. dxe5 {[%emt 0:00:42]} Rxd3 {[%emt 0:00:30]} 26. cxd3 {[%emt 0:00:00]} Nd5 {[%emt 0:00:30]} 27. g3 {[%emt 0:06:59]} Kf8 {[%emt 0:12:30]} 28. Bd4 {[%emt 0:01:30]} a6 {[%emt 0:00:00]} 29. b4 {[%emt 0:00:39]} Ke8 {[%emt 0:02:00]} 30. Kg2 {[%emt 0:00:36]} Kd7 {[%emt 0:01:30]} 31. Kf3 {[%emt 0:00:19]} Ke7 {[%emt 0:03:30]} 32. Ke4 {[%emt 0:01:04]} g6 {[%emt 0:05:30]} 33. f4 {[%emt 0:00:36]} Kf8 {[%emt 0:03:30]} 34. Bb2 {[%emt 0:01:19]} Ke7 {[%emt 0:00:30]} 35. Bd4 {[%emt 0:00:23]} Kf8 {[%emt 0:01:30]} 36. g4 {[%emt 0:00:04]} Kg7 {[%emt 0:05:02]} 37. Bb2 {[%emt 0:01:29]} Kf8 {[%emt 0:05:02]} 38. Ba1 {[%emt 0:00:20]} Ke7 {[%emt 0:00:56]} 39. Bd4 {[%emt 0:00:16]} Kf8 {[%emt 0:00:25]} 40. Be3 {[%emt 0:02:36]} Nc3+ {[%emt 0:04:46]} 41. Kd4 {[%emt 0:00:44]} Na4 {[%emt 0:00:08]} 42. Ke4 {[%emt 0:01:07]} Nc3+ {[%emt 0:00:12]} 43. Kf3 {[%emt 0:00:12]} Ke7 {[%emt 0:02:43]} 44. Bd4 {[%emt 0:00:50]} Nd5 {[%emt 0:01:41]} 45. Bb2 {[%emt 0:00:17]} Kf8 {[%emt 0:01:37]} 46. Bc1 {[%emt 0:00:07]} Ke7 {[%emt 0:00:39]} 47. Bd2 {[%emt 0:00:07]} Kd7 {[%emt 0:01:02]} 48. Ke4 {[%emt 0:00:14]} Ne7 {[%emt 0:00:59]} 49. Kd4 {[%emt 0:00:44]} Nd5 {[%emt 0:00:34]} 50. Ke4 {[%emt 0:00:37]} Ne7 {[%emt 0:00:04]} 51. Be3 {[%emt 0:00:15]} Nd5 {[%emt 0:00:29]} 52. Bd4 {[%emt 0:00:59]} Ke7 {[%emt 0:00:22]} 53. f5 {[%emt 0:00:27]} Kf8 {[%emt 0:02:00]} 54. f6 {[%emt 0:00:35]} Ke8 {[%emt 0:00:38]} 55. Kf3 {[%emt 0:00:38]} Kf8 {[%emt 0:00:30]} 56. Bb2 {[%emt 0:00:49]} Ke8 {[%emt 0:00:44]} 57. Ke4 {[%emt 0:00:23]} Kd7 {[%emt 0:00:30]} 58. Bc1 {[%emt 0:00:53]} Nc3+ {[%emt 0:01:16]} 59. Kf3 {[%emt 0:00:02]} Ke8 {[%emt 0:00:34]} 60. Bd2 {[%emt 0:00:12]} Nd5 {[%emt 0:02:21]} 61. Kg3 {[%emt 0:00:30]} Kf8 {[%emt 0:00:15]} 62. Kh4 {[%emt 0:00:35]} Kg8 {[%emt 0:00:38]} 63. Kg5 {[%emt 0:00:32]} Kf8 {[%emt 0:00:26]} 64. Be1 {[%emt 0:01:10]} Kg8 {[%emt 0:00:41]} 65. Bf2 {[%emt 0:00:26]} Kf8 {[%emt 0:00:43]} 66. Bd4 {[%emt 0:00:59]} Kg8 {[%emt 0:00:11]} 67. Bc5 {[%emt 0:00:08]} Nc3 {[%emt 0:00:57]} 68. Kf4 {[%emt 0:00:20]} Nb1 {[%emt 0:00:24]} 69. Ke3 {[%emt 0:00:39]} Nc3 {[%emt 0:00:19]} 70. Bd6 {[%emt 0:00:30]} Na4 {[%emt 0:00:32]} 71. Kd4 {[%emt 0:00:33]} h6 {[%emt 0:01:06]} 72. h4 {[%emt 0:00:37]} h5 {[%emt 0:00:00]} 73. g5 {[%emt 0:00:43]} Kh7 {[%emt 0:00:03]} 74. Bc5 {[%emt 0:00:29]} Kg8 {[%emt 0:00:11]} 75. Ke3 {[%emt 0:00:28]} Kh7 {[%emt 0:00:15]} 76. Ke4 {[%emt 0:00:22]} 1/2-1/2

[Event "Turkish Women-ch Arzum 2022"]
[Site "Ayvalik"]
[Date "2022.03.05"]
[Round "1.3"]
[White "Ozer, Melike Busra"]
[Black "Isgenderova, Hayale"]
[Result "0-1"]
[ECO "B45"]
[WhiteElo "1300"]
[BlackElo "2202"]
[Annotator "NA"]
[PlyCount "78"]
[EventDate "2022.03.04"]
[EventType "swiss"]
[EventCountry "TUR"]
[SourceTitle "playchess.com"]
[Source "ChessBase"]
[SourceQuality "1"]
[TimeControl "5400+30"]

1. e4 {[%emt 0:01:00]} c5 {[%emt 0:01:00]} 2. Nf3 {[%emt 0:00:30]} e6 {[%emt 0:00:30]} 3. d4 {[%emt 0:00:30]} cxd4 {[%emt 0:00:00]} 4. Nxd4 {[%emt 0:00:00]} Nf6 {[%emt 0:00:00]} 5. Nc3 {[%emt 0:00:00]} Nc6 {[%emt 0:00:00]} 6. Be3 {[%emt 0:00:30]} Bb4 {[%emt 0:00:00]} 7. Nxc6 {[%emt 0:05:30]} bxc6 {[%emt 0:00:30]} 8. Bd3 {[%emt 0:00:30]} d5 {[%emt 0:00:30]} 9. exd5 {[%emt 0:01:30]} cxd5 {[%emt 0:03:30]} 10. O-O {[%emt 0:01:30]} e5 {[%emt 0:06:30]} 11. Bg5 {[%emt 0:06:30]} Bxc3 {[%emt 0:00:30]} 12. bxc3 {[%emt 0:00:30]} O-O {[%emt 0:00:30]} 13. Re1 {[%emt 0:05:30]} Qd6 {[%emt 0:03:30]} 14. c4 {[%emt 0:05:30]} e4 {[%emt 0:09:30]} 15. Be2 {[%emt 0:10:30]} d4 {[%emt 0:04:30]} 16. f3 {[%emt 0:05:30]} Qc5 {[%emt 0:02:30]} 17. Bxf6 {[%emt 0:04:30]} gxf6 {[%emt 0:02:30]} 18. Kh1 {[%emt 0:01:30]} e3 {[%emt 0:06:30]} 19. Bd3 {[%emt 0:02:30]} Be6 {[%emt 0:00:30]} 20. f4 {[%emt 0:03:30]} Bxc4 {[%emt 0:07:30]} 21. Qg4+ {[%emt 0:04:30]} Kh8 {[%emt 0:02:30]} 22. Be4 {[%emt 0:00:00]} Rae8 {[%emt 0:01:30]} 23. Bxh7 {[%emt 0:10:00]} Kxh7 {[%emt 0:00:30]} 24. Qh4+ {[%emt 0:00:30]} Kg7 {[%emt 0:00:30]} 25. Qg4+ {[%emt 0:00:30]} Kh6 {[%emt 0:00:30]} 26. Qh4+ {[%emt 0:00:00]} Qh5 {[%emt 0:00:30]} 27. Qxf6+ {[%emt 0:00:00]} Qg6 {[%emt 0:00:30]} 28. Qxd4 {[%emt 0:00:00]} Rg8 {[%emt 0:00:00]} 29. g3 {[%emt 0:00:00]} Re4 {[%emt 0:04:00]} 30. Qxa7 {[%emt 0:06:30]} Bd5 {[%emt 0:05:30]} 31. Kg1 {[%emt 0:01:30]} Rge8 {[%emt 0:03:30]} 32. Rad1 {[%emt 0:02:30]} Ba8 {[%emt 0:06:30]} 33. Qc5 {[%emt 0:03:37]} R4e6 {[%emt 0:00:30]} 34. Rd4 {[%emt 0:04:59]} Rc6 {[%emt 0:01:30]} 35. f5 {[%emt 0:08:28]} Rxc5 {[%emt 0:01:30]} 36. fxg6 {[%emt 0:00:05]} fxg6 {[%emt 0:00:30]} 37. c4 {[%emt 0:00:29]} Ra5 {[%emt 0:00:30]} 38. Rd3 {[%emt 0:00:12]} Rxa2 {[%emt 0:02:30]} 39. Rdxe3 {[%emt 0:01:04]} Rg2+ {[%emt 0:00:30]} 0-1

[Event "Turkish Women-ch Arzum 2022"]
[Site "Ayvalik"]
[Date "2022.03.05"]
[Round "1.4"]
[White "Caglar, Sila"]
[Black "Gedik, Eylul Ceren"]
[Result "1-0"]
[ECO "B65"]
[WhiteElo "2200"]
[BlackElo "1282"]
[Annotator "NA"]
[PlyCount "59"]
[EventDate "2022.03.04"]
[EventType "swiss"]
[EventCountry "TUR"]
[SourceTitle "playchess.com"]
[Source "ChessBase"]
[SourceQuality "1"]
[TimeControl "5400+30"]

1. e4 {[%emt 0:01:00]} c5 {[%emt 0:01:00]} 2. Nf3 {[%emt 0:00:00]} Nc6 {[%emt 0:00:00]} 3. d4 {[%emt 0:00:00]} cxd4 {[%emt 0:00:00]} 4. Nxd4 {[%emt 0:00:30]} Nf6 {[%emt 0:00:30]} 5. Nc3 {[%emt 0:00:30]} d6 {[%emt 0:00:30]} 6. Bg5 {[%emt 0:00:00]} e6 {[%emt 0:00:00]} 7. Qd2 {[%emt 0:00:00]} Be7 {[%emt 0:00:00]} 8. O-O-O {[%emt 0:00:30]} O-O {[%emt 0:00:00]} 9. f4 {[%emt 0:00:30]} Nxd4 {[%emt 0:00:00]} 10. Qxd4 {[%emt 0:00:30]} Qa5 {[%emt 0:00:00]} 11. h4 {[%emt 0:02:30]} Rd8 {[%emt 0:04:00]} 12. Be2 {[%emt 0:04:30]} Bd7 {[%emt 0:04:30]} 13. h5 {[%emt 0:20:30]} h6 {[%emt 0:14:30]} 14. Bh4 {[%emt 0:00:30]} Rac8 {[%emt 0:07:30]} 15. g4 {[%emt 0:28:30]} e5 {[%emt 0:22:30]} 16. fxe5 {[%emt 0:17:30]} dxe5 {[%emt 0:00:30]} 17. Qe3 {[%emt 0:01:30]} Bc5 {[%emt 0:06:30]} 18. Qg3 {[%emt 0:00:30]} Bd4 {[%emt 0:01:30]} 19. Bxf6 {[%emt 0:02:03]} gxf6 {[%emt 0:00:30]} 20. Rxd4 {[%emt 0:01:14]} exd4 {[%emt 0:01:30]} 21. Nd5 {[%emt 0:00:08]} Kg7 {[%emt 0:01:30]} 22. g5 {[%emt 0:03:26]} hxg5 {[%emt 0:07:30]} 23. h6+ {[%emt 0:00:03]} Kh8 {[%emt 0:03:30]} 24. Qd6 {[%emt 0:01:13]} Rc6 {[%emt 0:15:34]} 25. Qe7 {[%emt 0:00:09]} Rdc8 {[%emt 0:00:41]} 26. Qxf7 {[%emt 0:09:23]} Rxc2+ {[%emt 0:02:56]} 27. Kb1 {[%emt 0:00:01]} Rxb2+ {[%emt 0:01:13]} 28. Kxb2 {[%emt 0:00:01]} Qd2+ {[%emt 0:00:16]} 29. Kb1 {[%emt 0:00:35]} Qc2+ {[%emt 0:01:39]} 30. Ka1 {[%emt 0:00:02]} 1-0

[Event "Turkish Women-ch Arzum 2022"]
[Site "Ayvalik"]
[Date "2022.03.05"]
[Round "1.5"]
[White "Bursali, Ela"]
[Black "Kocyigit, Buse Naz"]
[Result "1/2-1/2"]
[ECO "B22"]
[WhiteElo "1353"]
[BlackElo "2023"]
[Annotator "NA"]
[PlyCount "116"]
[EventDate "2022.03.04"]
[EventType "swiss"]
[EventCountry "TUR"]
[SourceTitle "playchess.com"]
[Source "ChessBase"]
[SourceQuality "1"]
[TimeControl "5400+30"]

1. e4 {[%emt 0:01:00]} c5 {[%emt 0:01:00]} 2. c3 {[%emt 0:00:00]} d5 {[%emt 0:00:30]} 3. exd5 {[%emt 0:00:00]} Qxd5 {[%emt 0:00:00]} 4. d4 {[%emt 0:00:30]} g6 {[%emt 0:00:00]} 5. Na3 {[%emt 0:00:30]} cxd4 {[%emt 0:03:30]} 6. cxd4 {[%emt 0:02:30]} Bg7 {[%emt 0:05:30]} 7. Nf3 {[%emt 0:04:30]} Nf6 {[%emt 0:07:30]} 8. Bc4 {[%emt 0:05:30]} Qd8 {[%emt 0:09:30]} 9. O-O {[%emt 0:06:30]} O-O {[%emt 0:00:30]} 10. Be3 {[%emt 0:04:30]} Nc6 {[%emt 0:10:30]} 11. h3 {[%emt 0:03:30]} Bf5 {[%emt 0:05:30]} 12. Rc1 {[%emt 0:05:30]} Be4 {[%emt 0:10:30]} 13. Ne5 {[%emt 0:04:30]} Qa5 {[%emt 0:09:30]} 14. Bxf7+ {[%emt 0:03:30]} Rxf7 {[%emt 0:01:30]} 15. Nxf7 {[%emt 0:01:30]} Kxf7 {[%emt 0:00:30]} 16. Rc5 {[%emt 0:01:30]} Qd8 {[%emt 0:03:30]} 17. Qb3+ {[%emt 0:03:30]} Bd5 {[%emt 0:01:30]} 18. Qxb7 {[%emt 0:11:30]} Nxd4 {[%emt 0:03:30]} 19. Qc7 {[%emt 0:05:30]} Nf5 {[%emt 0:08:43]} 20. Qxd8 {[%emt 0:05:30]} Rxd8 {[%emt 0:00:09]} 21. Rd1 {[%emt 0:00:30]} Nxe3 {[%emt 0:02:03]} 22. fxe3 {[%emt 0:00:30]} Bh6 {[%emt 0:05:51]} 23. Nc2 {[%emt 0:03:30]} Rd7 {[%emt 0:00:12]} 24. b3 {[%emt 0:01:30]} Bxg2 {[%emt 0:05:23]} 25. Rxd7 {[%emt 0:00:30]} Nxd7 {[%emt 0:00:01]} 26. Rc7 {[%emt 0:00:30]} Bxh3 {[%emt 0:00:12]} 27. Rxa7 {[%emt 0:00:00]} Bf5 {[%emt 0:02:03]} 28. Kf2 {[%emt 0:01:00]} Ne5 {[%emt 0:00:25]} 29. Rc7 {[%emt 0:01:30]} Ng4+ {[%emt 0:01:44]} 30. Kf3 {[%emt 0:00:30]} Bxc2 {[%emt 0:01:26]} 31. Rxc2 {[%emt 0:00:30]} Nxe3 {[%emt 0:00:57]} 32. Rh2 {[%emt 0:00:30]} Nf5 {[%emt 0:00:02]} 33. a4 {[%emt 0:00:30]} Bg7 {[%emt 0:02:43]} 34. Ke4 {[%emt 0:01:30]} h5 {[%emt 0:00:30]} 35. Rd2 {[%emt 0:02:30]} h4 {[%emt 0:00:32]} 36. Rd3 {[%emt 0:02:08]} Ke6 {[%emt 0:00:29]} 37. a5 {[%emt 0:00:42]} Bd4 {[%emt 0:00:33]} 38. Kf4 {[%emt 0:01:34]} Kf6 {[%emt 0:00:30]} 39. a6 {[%emt 0:00:17]} g5+ {[%emt 0:00:30]} 40. Kg4 {[%emt 0:01:02]} Ne3+ {[%emt 0:00:11]} 41. Kh3 {[%emt 0:00:21]} Bb6 {[%emt 0:00:46]} 42. Rd7 {[%emt 0:00:31]} Nf5 {[%emt 0:00:31]} 43. a7 {[%emt 0:00:58]} Bxa7 {[%emt 0:00:30]} 44. Rxa7 {[%emt 0:00:00]} Nd4 {[%emt 0:00:21]} 45. b4 {[%emt 0:00:00]} e5 {[%emt 0:00:24]} 46. Kg4 {[%emt 0:00:47]} e4 {[%emt 0:00:06]} 47. Ra6+ {[%emt 0:00:08]} Ke5 {[%emt 0:00:30]} 48. Ra5+ {[%emt 0:01:02]} Kd6 {[%emt 0:00:34]} 49. Ra6+ {[%emt 0:02:12]} Kd5 {[%emt 0:00:04]} 50. Ra5+ {[%emt 0:00:00]} Kd6 {[%emt 0:01:36]} 51. Ra6+ {[%emt 0:00:06]} Kd5 {[%emt 0:00:09]} 52. Ra5+ {[%emt 0:00:03]} Kc4 {[%emt 0:00:45]} 53. Rxg5 {[%emt 0:00:15]} e3 {[%emt 0:00:25]} 54. Re5 {[%emt 0:00:17]} Kd3 {[%emt 0:00:49]} 55. Rxe3+ {[%emt 0:00:07]} Kxe3 {[%emt 0:00:18]} 56. Kxh4 {[%emt 0:00:30]} Kd3 {[%emt 0:00:30]} 57. Kg5 {[%emt 0:00:00]} Kc4 {[%emt 0:00:00]} 58. b5 {[%emt 0:00:10]} Nxb5 {[%emt 0:00:14]} 1/2-1/2

[Event "Turkish Women-ch Arzum 2022"]
[Site "Ayvalik"]
[Date "2022.03.05"]
[Round "1.6"]
[White "Sahin, Hayrun Nisa"]
[Black "Kalyoncu, Beren"]
[Result "1-0"]
[ECO "C49"]
[WhiteElo "2014"]
[BlackElo "1228"]
[Annotator "NA"]
[PlyCount "73"]
[EventDate "2022.03.04"]
[EventType "swiss"]
[EventCountry "TUR"]
[SourceTitle "playchess.com"]
[Source "ChessBase"]
[SourceQuality "1"]
[TimeControl "5400+30"]

1. e4 {[%emt 0:01:00]} e5 {[%emt 0:01:00]} 2. Nf3 {[%emt 0:00:30]} Nc6 {[%emt 0:00:00]} 3. Nc3 {[%emt 0:00:00]} Nf6 {[%emt 0:00:00]} 4. Bb5 {[%emt 0:00:00]} Bb4 {[%emt 0:00:30]} 5. O-O {[%emt 0:00:00]} O-O {[%emt 0:00:30]} 6. d3 {[%emt 0:00:00]} Bxc3 {[%emt 0:00:30]} 7. bxc3 {[%emt 0:00:00]} d6 {[%emt 0:00:30]} 8. h3 {[%emt 0:02:00]} Ne7 {[%emt 0:00:30]} 9. Re1 {[%emt 0:02:30]} Ng6 {[%emt 0:05:30]} 10. d4 {[%emt 0:00:30]} h6 {[%emt 0:06:30]} 11. Ba3 {[%emt 0:04:30]} c6 {[%emt 0:03:30]} 12. dxe5 {[%emt 0:04:30]} Nh7 {[%emt 0:11:30]} 13. Bf1 {[%emt 0:01:30]} Re8 {[%emt 0:04:30]} 14. exd6 {[%emt 0:02:30]} Bd7 {[%emt 0:04:30]} 15. Rb1 {[%emt 0:00:30]} b6 {[%emt 0:03:30]} 16. e5 {[%emt 0:00:30]} Ng5 {[%emt 0:02:30]} 17. Nd4 {[%emt 0:04:30]} Nh7 {[%emt 0:13:30]} 18. e6 {[%emt 0:08:30]} fxe6 {[%emt 0:02:30]} 19. Bc4 {[%emt 0:04:30]} Nf4 {[%emt 0:03:30]} 20. Qg4 {[%emt 0:02:30]} Qg5 {[%emt 0:02:30]} 21. Re4 {[%emt 0:11:30]} Qxg4 {[%emt 0:00:30]} 22. hxg4 {[%emt 0:00:30]} Nd5 {[%emt 0:00:30]} 23. Rbe1 {[%emt 0:00:30]} Nhf6 {[%emt 0:03:30]} 24. R4e2 {[%emt 0:05:30]} c5 {[%emt 0:07:30]} 25. Nxe6 {[%emt 0:01:30]} Kh8 {[%emt 0:02:30]} 26. g5 {[%emt 0:04:30]} hxg5 {[%emt 0:02:11]} 27. Nxg5 {[%emt 0:00:00]} Nxc3 {[%emt 0:01:59]} 28. Re5 {[%emt 0:13:00]} Nb5 {[%emt 0:05:32]} 29. Nf7+ {[%emt 0:02:30]} Kh7 {[%emt 0:01:22]} 30. Bb2 {[%emt 0:00:30]} Rxe5 {[%emt 0:02:08]} 31. Bxe5 {[%emt 0:04:30]} Re8 {[%emt 0:02:17]} 32. f4 {[%emt 0:00:30]} Nh5 {[%emt 0:04:42]} 33. Kf2 {[%emt 0:00:30]} Kg6 {[%emt 0:03:14]} 34. Ng5 {[%emt 0:00:30]} Kh6 {[%emt 0:01:31]} 35. g4 {[%emt 0:01:30]} Nf6 {[%emt 0:01:01]} 36. Rh1+ {[%emt 0:00:00]} Kg6 {[%emt 0:00:20]} 37. Bf7# {[%emt 0:00:00]} 1-0

[Event "Turkish Women-ch Arzum 2022"]
[Site "Ayvalik"]
[Date "2022.03.05"]
[Round "1.7"]
[White "Susin, Derya Defne"]
[Black "Onur, Cigdem"]
[Result "1/2-1/2"]
[ECO "D37"]
[WhiteElo "1285"]
[BlackElo "2012"]
[Annotator "NA"]
[PlyCount "87"]
[EventDate "2022.03.04"]
[EventType "swiss"]
[EventCountry "TUR"]
[SourceTitle "playchess.com"]
[Source "ChessBase"]
[SourceQuality "1"]
[TimeControl "5400+30"]

1. d4 {[%emt 0:01:00]} d5 {[%emt 0:01:00]} 2. c4 {[%emt 0:00:00]} e6 {[%emt 0:00:30]} 3. Nc3 {[%emt 0:00:00]} Nf6 {[%emt 0:00:00]} 4. Nf3 {[%emt 0:00:30]} Be7 {[%emt 0:00:00]} 5. Bf4 {[%emt 0:02:30]} O-O {[%emt 0:02:30]} 6. e3 {[%emt 0:01:30]} c6 {[%emt 0:01:30]} 7. Rc1 {[%emt 0:05:30]} Nbd7 {[%emt 0:05:30]} 8. c5 {[%emt 0:08:30]} Nh5 {[%emt 0:20:30]} 9. Bd3 {[%emt 0:12:30]} Nxf4 {[%emt 0:09:30]} 10. exf4 {[%emt 0:01:30]} b6 {[%emt 0:08:30]} 11. b4 {[%emt 0:10:30]} a5 {[%emt 0:09:30]} 12. a3 {[%emt 0:08:30]} Ba6 {[%emt 0:06:30]} 13. O-O {[%emt 0:10:30]} Qb8 {[%emt 0:11:46]} 14. Ne5 {[%emt 0:09:30]} Nxe5 {[%emt 0:00:14]} 15. fxe5 {[%emt 0:01:30]} axb4 {[%emt 0:01:33]} 16. axb4 {[%emt 0:01:30]} bxc5 {[%emt 0:02:10]} 17. bxc5 {[%emt 0:02:30]} Qb4 {[%emt 0:04:41]} 18. Ra1 {[%emt 0:10:06]} Bxd3 {[%emt 0:10:24]} 19. Qxd3 {[%emt 0:00:59]} Ra3 {[%emt 0:02:02]} 20. Nxd5 {[%emt 0:07:07]} Rxd3 {[%emt 0:00:13]} 21. Nxb4 {[%emt 0:00:32]} Rxd4 {[%emt 0:00:08]} 22. Nxc6 {[%emt 0:00:18]} Rd7 {[%emt 0:00:06]} 23. Nxe7+ {[%emt 0:01:31]} Rxe7 {[%emt 0:00:05]} 24. c6 {[%emt 0:01:24]} Rc7 {[%emt 0:01:22]} 25. Rfc1 {[%emt 0:01:27]} Rfc8 {[%emt 0:00:21]} 26. Rab1 {[%emt 0:00:49]} f6 {[%emt 0:01:24]} 27. exf6 {[%emt 0:00:51]} gxf6 {[%emt 0:00:31]} 28. Rb6 {[%emt 0:00:52]} Kf7 {[%emt 0:00:16]} 29. f3 {[%emt 0:00:24]} Ke7 {[%emt 0:00:36]} 30. Kf2 {[%emt 0:00:33]} Kd6 {[%emt 0:00:48]} 31. Rb7 {[%emt 0:00:32]} Rxb7 {[%emt 0:01:34]} 32. cxb7 {[%emt 0:00:30]} Rb8 {[%emt 0:00:00]} 33. Rb1 {[%emt 0:00:36]} Kc6 {[%emt 0:00:00]} 34. Ke3 {[%emt 0:00:39]} Rxb7 {[%emt 0:00:23]} 35. Rxb7 {[%emt 0:00:30]} Kxb7 {[%emt 0:00:00]} 36. Ke4 {[%emt 0:00:00]} Kc6 {[%emt 0:00:00]} 37. h4 {[%emt 0:00:26]} h5 {[%emt 0:01:10]} 38. g4 {[%emt 0:00:52]} hxg4 {[%emt 0:00:38]} 39. fxg4 {[%emt 0:00:30]} Kd6 {[%emt 0:00:00]} 40. g5 {[%emt 0:00:21]} fxg5 {[%emt 0:00:17]} 41. hxg5 {[%emt 0:00:02]} Ke7 {[%emt 0:00:31]} 42. Ke5 {[%emt 0:00:30]} Kf7 {[%emt 0:00:00]} 43. g6+ {[%emt 0:00:08]} Kxg6 {[%emt 0:00:13]} 44. Kxe6 {[%emt 0:00:30]} 1/2-1/2